bitfinex-derivatives/quotes_ETHF0:USTF0_20260308
["timestamp","ask_amount","ask_price","bid_price","bid_amount"]
[1772930235145,0.25971595,1969.1,1968.7,0.56546042]
[1772930236141,0.25971595,1969.1,1968.7,0.57089836]
[1772930236344,1.80464351,1969.0,1968.7,0.57089836]
[1772930236544,2.38592954,1969.0,1968.7,0.2665437]
[1772930236947,0.58128603,1969.0,1968.7,0.2665437]
[1772930237546,0.58128603,1969.0,1968.7,0.27028381]
[1772930244155,0.58128603,1969.3,1968.7,0.27028381]
[1772930245249,0.58128603,1969.6,1968.8,0.56546042]
[1772930245450,0.58128603,1969.5,1968.8,0.56546042]
[1772930249457,0.58128603,1969.3,1968.7,0.56920053]
[1772930249661,0.58128603,1969.3,1968.7,0.00374011]
[1772930251165,0.58128603,1969.3,1968.7,0.56920053]
[1772930258564,0.5649793,1969.1,1968.7,0.56920053]
[1772930260567,0.5649793,1969.4,1968.7,0.56920053]
[1772930260770,7.07400773,1969.3,1968.7,0.56920053]
[1772930260969,0.5649793,1969.3,1968.7,0.56920053]
[1772930263268,7.07643318,1969.2,1968.7,0.56920053]
[1772930263464,0.5649793,1969.2,1968.7,0.56920053]
[1772930271876,0.5649793,1969.4,1968.7,0.56920053]
[1772930272279,0.5649793,1969.6,1968.7,0.56920053]
[1772930272480,6.51387048,1969.5,1968.7,0.56920053]
[1772930272680,0.5649793,1969.6,1968.7,0.56920053]
[1772930272980,7.0788593,1969.5,1968.7,0.56920053]
[1772930273182,0.5649793,1969.5,1968.7,0.56920053]
[1772930281986,0.57584484,1969.7,1968.7,0.56920053]
[1772930282184,6.50864126,1969.6,1968.7,0.56920053]
[1772930282379,0.57584484,1969.7,1968.7,0.56920053]
[1772930290590,0.57584484,1969.7,1969.0,0.54397432]
[1772930290794,0.57584484,1969.7,1969.1,0.54397432]
[1772930292087,4.51560867,1970.3,1969.1,0.54397432]
[1772930292293,0.53952707,1970.1,1969.1,0.54397432]
[1772930292492,0.53952707,1969.9,1969.1,0.54397432]
[1772930301394,0.53952707,1969.7,1969.1,0.54397432]
[1772930330022,0.53952707,1969.7,1968.9,0.5628719]
[1772930330222,0.5500211,1969.5,1968.7,0.56661201]
[1772930332522,0.5500211,1969.5,1968.8,0.5628719]
[1772930359349,7.0757283,1969.4,1968.8,0.5628719]
[1772930359552,0.58421902,1969.4,1968.8,0.5628719]
[1772930379470,0.55757172,1969.6,1968.8,0.5628719]
[1772930379772,0.55757172,1969.4,1968.8,0.5628719]
[1772930383974,0.55757172,1969.6,1968.8,0.5628719]
[1772930384173,6.47606623,1969.5,1968.8,0.5628719]
[1772930384373,0.55757172,1969.6,1968.8,0.5628719]
[1772930384569,7.032791,1969.5,1968.8,0.5628719]
[1772930384774,0.55757172,1969.5,1968.8,0.5628719]
[1772930390779,0.55757172,1969.7,1968.8,0.5628719]
[1772930390969,0.55757172,1969.7,1968.7,0.56389009]
[1772930391174,0.55757172,1969.5,1968.7,0.56389009]
[1772930391378,0.55757172,1969.3,1968.7,0.56389009]
[1772930395478,0.55757172,1969.3,1968.8,0.56014998]
[1772930398374,0.55757172,1969.5,1968.8,0.56014998]
[1772930408393,4.25702566,1969.9,1968.8,0.56014998]
[1772930408590,0.56861758,1969.6,1968.8,0.56014998]
[1772930411895,0.56861758,1969.7,1968.9,0.54299926]
[1772930412095,0.56861758,1970.0,1969.1,0.54299926]
[1772930412298,0.56861758,1970.0,1969.3,0.54299926]
[1772930430513,0.56861758,1970.0,1969.5,0.54299926]
[1772930433719,0.58040497,1970.2,1969.7,0.59102563]
[1772930444927,0.58040497,1970.2,1969.7,15.80902563]
[1772930446425,0.58040497,1970.2,1969.8,0.59102563]
[1772930446730,0.58520798,1970.3,1969.9,0.59102563]
[1772930446927,0.0102264,1970.4,1969.9,0.59102563]
[1772930447131,6.39081021,1970.3,1969.9,0.59102563]
[1772930447334,0.0102264,1970.4,1969.9,0.59102563]
[1772930447625,6.39000406,1970.3,1969.9,0.59102563]
[1772930447925,4.25702566,1970.6,1969.9,0.59102563]
[1772930448333,4.51075566,1970.7,1969.9,0.59102563]
[1772930448631,0.48983578,1970.6,1969.9,0.59102563]
[1772930448826,0.00386825,1970.6,1969.9,0.59102563]
[1772930449226,0.00386825,1970.6,1970.1,0.59836245]
[1772930449433,0.00386825,1970.6,1970.1,0.60307415]
[1772930464143,4.51068566,1971.2,1970.3,0.60177053]
[1772930464345,6.35776561,1971.1,1970.3,0.60177053]
[1772930464639,6.35776561,1971.0,1970.3,0.60177053]
[1772930464842,4.51068566,1971.2,1970.3,0.60177053]
[1772930465044,6.35776561,1971.1,1970.3,0.60177053]
[1772930465240,6.35776561,1971.0,1970.3,0.60177053]
[1772930465440,0.00431325,1971.1,1970.3,0.60177053]
[1772930465737,6.35702996,1971.0,1970.3,0.60177053]
[1772930465947,1.80406235,1970.7,1970.1,0.60620307]
[1772930466144,1.80406235,1970.9,1970.1,0.60620307]
[1772930468041,1.80406235,1970.7,1970.1,0.0047117]
[1772930468343,1.80406235,1970.7,1969.9,0.60257103]
[1772930468644,6.35822128,1970.6,1969.9,0.60257103]
[1772930468944,1.80406235,1970.7,1969.9,0.60257103]
[1772930469144,6.35822128,1970.6,1969.9,0.60638281]
[1772930469346,1.80406235,1970.7,1969.9,0.60638281]
[1772930469545,6.35921328,1970.6,1969.9,0.60638281]
[1772930469735,1.80406235,1970.7,1969.9,0.60638281]
[1772930469940,6.35921328,1970.6,1969.9,0.60638281]
[1772930470139,1.80406235,1970.7,1969.9,0.60638281]
[1772930470339,6.36006361,1970.6,1969.9,0.60638281]
[1772930470540,1.80406235,1970.5,1969.9,0.60638281]
[1772930470846,1.80406235,1970.5,1969.9,0.00381178]
[1772930471041,6.36006361,1970.4,1969.6,0.60759071]
[1772930471242,1.80406235,1970.5,1969.6,0.60759071]
[1772930471545,6.3609796,1970.4,1969.6,0.60759071]
[1772930471847,1.80406235,1970.5,1969.6,0.60759071]
[1772930472048,6.3609796,1970.4,1969.6,0.61207088]
[1772930472351,1.80406235,1970.5,1969.6,0.61207088]
[1772930472646,6.36118962,1970.4,1969.6,0.61207088]
[1772930472845,1.80406235,1970.5,1969.6,0.61207088]
[1772930473040,6.36118962,1970.4,1969.6,0.61207088]
[1772930473246,8.16546598,1970.3,1969.6,0.61207088]
[1772930473447,1.80406235,1970.3,1969.6,0.61207088]
[1772930478548,4.25702566,1970.6,1969.6,0.61207088]
[1772930478549,1.80406235,1970.1,1969.6,0.61305706]
[1772930482458,1.80406235,1970.1,1969.3,15.29514761]
[1772930482645,1.80406235,1970.1,1969.3,0.60914761]
[1772930483555,1.80406235,1970.1,1969.3,0.61385839]
[1772930488963,1.80406235,1969.9,1969.3,0.61385839]
[1772930489663,4.25069562,1971.0,1969.3,0.61385839]
[1772930489960,1.80406235,1970.5,1969.9,0.60758974]
[1772930492461,6.652,1970.8,1969.9,0.60758974]
[1772930492664,6.82371536,1970.7,1969.4,0.61060985]
[1772930492864,6.33553479,1970.6,1969.4,0.61060985]
[1772930493164,6.33553479,1970.5,1969.4,0.61060985]
[1772930493364,6.652,1970.8,1969.4,0.61060985]
[1772930493563,6.82532296,1970.7,1969.4,0.61060985]
[1772930493759,6.33700257,1970.6,1969.4,0.61060985]
[1772930493959,6.33700257,1970.5,1969.4,0.61060985]
[1772930494259,10.90269562,1970.8,1969.4,0.61060985]
[1772930494564,6.82717365,1970.7,1969.4,0.61060985]
[1772930494758,6.3386528,1970.6,1969.4,0.61060985]
[1772930494959,6.3386528,1970.5,1969.4,0.61060985]
[1772930495155,0.25372,1970.7,1969.4,0.61060985]
[1772930495365,6.34103898,1970.6,1969.4,0.61060985]
[1772930495563,6.34103898,1970.5,1969.4,0.61060985]
[1772930495754,0.25372,1970.7,1969.4,0.61060985]
[1772930495959,6.34115468,1970.6,1969.4,0.61060985]
[1772930496162,6.34115468,1970.5,1969.4,0.61060985]
[1772930496361,0.25372,1970.7,1969.4,0.61060985]
[1772930496362,0.25372,1970.7,1969.5,0.61061761]
[1772930496562,6.34253062,1970.6,1969.5,0.61061761]
[1772930496761,6.90572,1970.7,1969.5,0.61061761]
[1772930496963,6.34251615,1970.6,1969.5,0.61061761]
[1772930497262,6.90572,1970.7,1969.5,0.61061761]
[1772930497462,6.34458362,1970.6,1969.5,0.61061761]
[1772930497655,6.90572,1970.7,1969.5,0.61061761]
[1772930497861,6.34458362,1970.6,1969.5,0.61061761]
[1772930498065,6.34576689,1970.5,1969.5,0.61061761]
[1772930498259,6.90572,1970.7,1969.5,0.61061761]
[1772930498462,6.34576689,1970.6,1969.5,0.61061761]
[1772930498661,6.34576689,1970.5,1969.5,0.61061761]
[1772930498860,6.90572,1970.7,1969.5,0.61061761]
[1772930499060,6.34576689,1970.6,1969.5,0.61061761]
[1772930499261,6.34576689,1970.5,1969.5,0.61061761]
[1772930499461,6.90572,1970.7,1969.5,0.61061761]
[1772930499663,6.34639346,1970.6,1969.5,0.61061761]
[1772930499964,6.34639346,1970.5,1969.5,0.61061761]
[1772930500163,11.15641562,1970.7,1969.5,0.61061761]
[1772930500363,6.34692622,1970.6,1969.5,0.61061761]
[1772930500564,6.34692622,1970.5,1969.5,0.61061761]
[1772930500865,11.15641562,1970.7,1969.5,0.61061761]
[1772930501067,6.34692622,1970.6,1969.5,0.61061761]
[1772930501260,6.34692622,1970.5,1969.5,0.61061761]
[1772930501458,11.15641562,1970.7,1969.5,0.61061761]
[1772930501760,6.34654748,1970.6,1969.5,0.61061761]
[1772930501961,6.34654748,1970.5,1969.5,0.61061761]
[1772930502261,11.15641562,1970.7,1969.5,0.61061761]
[1772930502564,6.34618913,1970.6,1969.5,0.61061761]
[1772930502760,11.15641562,1970.7,1969.5,0.61061761]
[1772930502761,6.34618913,1970.5,1969.5,0.61061761]
[1772930502957,11.15641562,1970.7,1969.5,0.61061761]
[1772930503164,6.34618913,1970.6,1969.5,0.61061761]
[1772930503362,6.34618913,1970.5,1969.5,0.61061761]
[1772930503662,11.15641562,1970.7,1969.5,0.61061761]
[1772930503857,6.34585364,1970.6,1969.5,0.61061761]
[1772930504062,6.34585364,1970.5,1969.5,0.61061761]
[1772930504258,6.3461207,1970.4,1969.5,0.61061761]
[1772930504463,11.15641562,1970.7,1969.5,0.61061761]
[1772930504662,6.83520553,1970.6,1969.5,0.61061761]
[1772930504966,6.3461207,1970.5,1969.5,0.61061761]
[1772930505164,6.3461207,1970.4,1969.5,0.61061761]
[1772930505364,11.15641562,1970.7,1969.5,0.61061761]
[1772930505564,6.83509888,1970.6,1969.5,0.61061761]
[1772930505864,6.34602185,1970.5,1969.5,0.61061761]
[1772930506064,6.34602185,1970.4,1969.5,0.61061761]
[1772930506265,11.15641562,1970.7,1969.5,0.61061761]
[1772930506464,6.83500993,1970.6,1969.5,0.61061761]
[1772930506666,6.34593996,1970.5,1969.5,0.61061761]
[1772930506964,6.34593996,1970.4,1969.5,0.61061761]
[1772930507167,11.15641562,1970.7,1969.5,0.61061761]
[1772930507468,6.83493395,1970.6,1969.5,0.61061761]
[1772930507667,6.3458701,1970.5,1969.5,0.61061761]
[1772930507869,6.3458701,1970.4,1969.5,0.61061761]
[1772930508168,11.15641562,1970.7,1969.5,0.61061761]
[1772930508466,6.8348722,1970.6,1969.5,0.61061761]
[1772930508668,6.34581344,1970.5,1969.5,0.61061761]
[1772930508868,6.34581344,1970.4,1969.5,0.61061761]
[1772930509063,11.15641562,1970.7,1969.5,0.61061761]
[1772930509265,6.83494944,1970.6,1969.5,0.61061761]
[1772930509460,6.34589068,1970.5,1969.5,0.61061761]
[1772930509662,6.34589068,1970.4,1969.5,0.61061761]
[1772930509868,6.34589068,1970.3,1969.5,0.61061761]
[1772930510067,4.25069562,1970.5,1969.5,0.61061761]
[1772930513274,0.48914314,1970.4,1969.5,0.61061761]
[1772930513476,12.99832767,1970.3,1969.5,0.61061761]
[1772930513679,6.652,1970.3,1969.5,0.61061761]
[1772930514171,6.34773958,1970.2,1969.3,0.61322023]
[1772930514376,6.34773958,1970.1,1969.3,0.61322023]
[1772930514578,12.96058566,1970.3,1969.3,0.61322023]
[1772930514772,11.08795485,1970.2,1969.3,0.61322023]
[1772930514972,6.34805988,1970.1,1969.3,0.61322023]
[1772930515177,6.34805988,1970.0,1969.3,0.61322023]
[1772930515378,4.25069562,1970.2,1969.3,0.61322023]
[1772930515579,10.59841437,1970.2,1969.3,0.61322023]
[1772930519682,0.48913126,1970.1,1969.3,0.00471078]
[1772930519884,6.34771875,1970.0,1969.3,0.00471078]
[1772930520181,6.34771875,1969.9,1969.3,0.00471078]
[1772930520382,4.25069562,1970.2,1969.3,0.61422826]
[1772930520579,0.48913069,1970.1,1969.3,0.61422826]
[1772930520784,8.15078702,1970.0,1969.3,0.00471078]
[1772930521082,12.99868698,1969.9,1969.3,0.00471078]
[1772930521282,6.34226245,1969.8,1969.3,0.00471078]
[1772930521477,6.652,1969.9,1969.3,0.00471078]
[1772930521674,6.34207356,1969.8,1969.3,0.00471078]
[1772930521874,6.652,1969.9,1969.1,0.60973703]
[1772930522074,6.34207344,1969.8,1969.1,0.60973703]
[1772930522285,6.652,1969.9,1969.1,0.60973703]
[1772930522486,6.34004327,1969.8,1969.1,0.60973703]
[1772930522784,6.652,1969.9,1969.1,0.61409197]
[1772930522982,6.34051209,1969.8,1969.1,0.61409197]
[1772930523176,6.652,1969.9,1969.1,0.61409197]
[1772930523378,6.33876096,1969.8,1969.1,0.61409197]
[1772930523686,6.652,1969.9,1969.1,0.61409197]
[1772930523880,6.33876098,1969.8,1969.1,0.61409197]
[1772930524081,6.652,1969.9,1969.1,0.61409197]
[1772930524281,6.33730924,1969.8,1969.1,0.61409197]
[1772930524483,6.652,1969.9,1969.1,0.61409197]
[1772930524684,6.33733843,1969.8,1969.1,0.61409197]
[1772930524984,6.652,1969.9,1969.1,0.61409197]
[1772930525186,6.33734226,1969.8,1969.1,0.61409197]
[1772930525385,6.652,1969.9,1969.1,0.61409197]
[1772930525690,6.3361614,1969.8,1969.1,0.61409197]
[1772930525890,6.652,1969.9,1969.1,0.61409197]
[1772930533191,6.33626607,1969.8,1969.1,0.61409197]
[1772930533391,6.652,1969.9,1969.1,0.61409197]
[1772930533590,6.3362661,1969.8,1969.1,0.61409197]
[1772930533789,6.652,1969.9,1969.1,0.61409197]
[1772930534091,6.3362653,1969.8,1969.1,0.61409197]
[1772930534391,6.652,1969.9,1969.1,0.61409197]
[1772930534691,6.33728365,1969.8,1969.1,0.61409197]
[1772930534888,6.652,1969.9,1969.1,0.61409197]
[1772930535088,6.33728284,1969.8,1969.1,0.61409197]
[1772930535290,6.652,1969.9,1969.1,0.61409197]
[1772930535491,6.33811491,1969.8,1969.1,0.61409197]
[1772930535789,6.652,1969.9,1969.1,0.61409197]
[1772930536188,6.33902596,1969.8,1969.1,0.61409197]
[1772930536490,6.652,1969.9,1969.1,0.61409197]
[1772930536690,6.33917261,1969.8,1969.1,0.61409197]
[1772930536890,6.652,1969.9,1969.1,0.61409197]
[1772930537093,6.33917097,1969.8,1969.1,0.61409197]
[1772930537296,6.652,1969.9,1969.1,0.61409197]
[1772930537587,6.34048568,1969.8,1969.1,0.61409197]
[1772930537792,6.652,1969.9,1969.1,0.61409197]
[1772930537993,6.34048811,1969.8,1969.1,0.61409197]
[1772930538186,6.652,1969.9,1969.1,0.61409197]
[1772930538390,6.3420918,1969.8,1969.1,0.61409197]
[1772930538585,6.652,1969.9,1969.1,0.61409197]
[1772930538785,6.342092,1969.8,1969.1,0.61409197]
[1772930538991,6.652,1969.9,1969.1,0.61409197]
[1772930539192,6.34388386,1969.8,1969.1,0.61409197]
[1772930539391,6.652,1969.9,1969.1,0.61409197]
[1772930539593,6.34406933,1969.8,1969.1,0.61409197]
[1772930539892,6.652,1969.9,1969.1,0.61409197]
[1772930540086,6.34406898,1969.8,1969.1,0.61409197]
[1772930540286,6.652,1969.9,1969.1,0.61409197]
[1772930540488,6.34531291,1969.8,1969.1,0.61409197]
[1772930540691,6.652,1969.9,1969.1,0.61409197]
[1772930540895,6.34531027,1969.8,1969.1,0.61409197]
[1772930541096,6.34682273,1969.7,1969.1,0.61409197]
[1772930541295,0.0049092,1969.7,1969.1,0.61409197]
[1772930548203,6.35853593,1969.6,1969.1,0.61409197]
[1772930548401,0.0049092,1969.7,1969.1,0.61409197]
[1772930548700,6.3586015,1969.6,1969.1,0.61409197]
[1772930548891,0.0049092,1969.7,1969.1,0.61409197]
[1772930549093,6.35860317,1969.6,1969.1,0.61409197]
[1772930549296,0.0049092,1969.7,1969.1,0.61409197]
[1772930549498,6.36134742,1969.6,1969.1,0.61409197]
[1772930549702,0.0049092,1969.7,1969.1,0.61409197]
[1772930550002,6.36134663,1969.6,1969.1,0.61409197]
[1772930550197,0.0049092,1969.7,1969.1,0.61409197]
[1772930550398,6.36113754,1969.6,1969.1,0.61409197]
[1772930550601,0.0049092,1969.7,1969.1,0.61409197]
[1772930550795,6.36051342,1969.6,1969.1,0.61409197]
[1772930551102,0.0049092,1969.7,1969.1,0.61409197]
[1772930551302,6.36203225,1969.6,1969.1,0.61409197]
[1772930551505,0.0049092,1969.7,1969.1,0.61409197]
[1772930551703,6.36203935,1969.6,1969.1,0.61409197]
[1772930552003,0.0049092,1969.7,1969.1,0.61409197]
[1772930552203,6.36170736,1969.6,1969.1,0.61409197]
[1772930552403,0.0049092,1969.7,1969.1,0.61409197]
[1772930552605,6.36170763,1969.6,1969.1,0.61409197]
[1772930552803,0.0049092,1969.7,1969.1,0.61409197]
[1772930552998,6.36148649,1969.6,1969.1,0.61409197]
[1772930553304,6.36148649,1969.5,1969.1,0.00435494]
[1772930553606,1.81017699,1969.7,1969.1,0.00435494]
[1772930553797,6.36061958,1969.6,1969.1,0.00435494]
[1772930554002,6.36061958,1969.5,1969.1,0.00435494]
[1772930554204,1.81017699,1969.7,1969.1,0.00435494]
[1772930554400,6.36015601,1969.6,1969.1,0.00435494]
[1772930554600,1.81017699,1969.7,1969.1,0.00435494]
[1772930554601,6.36015601,1969.5,1969.1,0.00435494]
[1772930554800,1.81017699,1969.7,1969.1,0.00435494]
[1772930555005,6.36010001,1969.6,1969.1,0.60432867]
[1772930555203,6.36010001,1969.5,1969.1,0.60432867]
[1772930555396,1.81017699,1969.7,1969.1,0.60432867]
[1772930555699,6.35974404,1969.6,1969.1,0.60432867]
[1772930555899,6.35974404,1969.5,1969.1,0.60432867]
[1772930556099,1.81017699,1969.7,1969.1,0.60432867]
[1772930556299,6.35949059,1969.6,1969.1,0.60432867]
[1772930556500,1.81017699,1969.7,1969.1,0.60432867]
[1772930556501,6.35949059,1969.5,1969.1,0.60432867]
[1772930556701,1.81017699,1969.7,1969.1,0.60432867]
[1772930556902,6.35947341,1969.6,1969.1,0.60432867]
[1772930557101,1.81017699,1969.7,1969.1,0.60432867]
[1772930557405,6.35924843,1969.6,1969.1,0.60432867]
[1772930557609,1.81017699,1969.7,1969.1,0.60432867]
[1772930557907,6.3589081,1969.6,1969.1,0.60432867]
[1772930558206,1.81017699,1969.7,1969.1,0.60432867]
[1772930558404,6.358722,1969.6,1969.1,0.60432867]
[1772930558606,1.81017699,1969.7,1969.1,0.60432867]
[1772930558806,6.358372,1969.6,1969.1,0.60432867]
[1772930559006,1.81017699,1969.7,1969.1,0.60432867]
[1772930559306,6.35819878,1969.6,1969.1,0.60432867]
[1772930559608,1.81017699,1969.7,1969.1,0.60432867]
[1772930559802,6.35823733,1969.6,1969.1,0.60432867]
[1772930560002,1.81017699,1969.7,1969.1,0.60432867]
[1772930560202,6.35812351,1969.6,1969.1,0.60432867]
[1772930560404,1.81017699,1969.7,1969.1,0.60432867]
[1772930560605,6.35812051,1969.6,1969.1,0.60432867]
[1772930560801,1.81017699,1969.7,1969.1,0.60432867]
[1772930561004,6.35812217,1969.6,1969.1,0.60432867]
[1772930561204,1.81017699,1969.7,1969.1,0.60432867]
[1772930561410,6.35799573,1969.6,1969.1,0.60432867]
[1772930561610,1.81017699,1969.7,1969.1,0.60432867]
[1772930561810,6.35786601,1969.6,1969.1,0.60432867]
[1772930562009,1.81017699,1969.7,1969.1,0.60432867]
[1772930562309,6.35777763,1969.6,1969.1,0.60432867]
[1772930562509,1.81017699,1969.7,1969.1,0.60432867]
[1772930562709,6.35763224,1969.6,1969.1,0.60432867]
[1772930562910,1.81017699,1969.7,1969.1,0.60432867]
[1772930563211,6.35763461,1969.6,1969.1,0.60432867]
[1772930563509,1.81017699,1969.7,1969.1,0.60432867]
[1772930563709,6.35756911,1969.6,1969.1,0.60432867]
[1772930563907,1.81017699,1969.7,1969.1,0.60432867]
[1772930564109,6.35756922,1969.6,1969.1,0.60432867]
[1772930564410,1.81017699,1969.7,1969.1,0.60432867]
[1772930564611,6.35752189,1969.6,1969.1,0.00435494]
[1772930564811,1.81017699,1969.7,1969.1,0.00435494]
[1772930565112,6.35751561,1969.6,1969.1,0.00435494]
[1772930565311,1.81017699,1969.7,1969.1,0.00435494]
[1772930565513,6.35747691,1969.6,1969.1,0.00435494]
[1772930565707,1.81017699,1969.7,1969.1,0.00435494]
[1772930565908,6.35747575,1969.6,1969.1,0.60407816]
[1772930566109,1.81017699,1969.7,1969.1,0.60407816]
[1772930566309,6.35744966,1969.6,1969.1,0.60407816]
[1772930566608,1.81017699,1969.7,1969.1,0.60407816]
[1772930566809,6.35744901,1969.6,1969.1,0.60407816]
[1772930567008,1.81017699,1969.7,1969.1,0.60407816]
[1772930567207,6.35744547,1969.6,1969.1,0.60407816]
[1772930567410,1.81017699,1969.7,1969.1,0.60407816]
[1772930567610,6.3574463,1969.6,1969.1,0.60407816]
[1772930567809,1.81017699,1969.7,1969.1,0.60407816]
[1772930568010,6.35744471,1969.6,1969.1,0.60407816]
[1772930568210,1.81017699,1969.7,1969.1,0.60407816]
[1772930568410,6.35745821,1969.6,1969.1,0.60407816]
[1772930568710,1.81017699,1969.7,1969.1,0.60407816]
[1772930568908,6.3574568,1969.6,1969.1,0.60407816]
[1772930569108,1.81017699,1969.7,1969.1,0.60407816]
[1772930569308,6.35748719,1969.6,1969.1,0.60407816]
[1772930569509,1.81017699,1969.7,1969.1,0.60407816]
[1772930569709,6.35748708,1969.6,1969.1,0.60407816]
[1772930570009,1.81017699,1969.7,1969.1,0.60407816]
[1772930570208,6.35753236,1969.6,1969.1,0.60407816]
[1772930570409,1.81017699,1969.7,1969.1,0.60407816]
[1772930570611,6.35753157,1969.6,1969.1,0.60407816]
[1772930570911,6.35753157,1969.5,1969.1,0.60407816]
[1772930571112,1.81017699,1969.7,1969.1,0.60407816]
[1772930571313,6.35762873,1969.6,1969.1,0.60407816]
[1772930571514,6.35762873,1969.5,1969.1,0.60407816]
[1772930571713,1.81017699,1969.7,1969.1,0.60407816]
[1772930571911,6.35762873,1969.6,1969.1,0.60407816]
[1772930572113,6.35762873,1969.5,1969.1,0.60407816]
[1772930572414,1.81017699,1969.7,1969.1,0.60407816]
[1772930572616,6.35692242,1969.6,1969.1,0.60407816]
[1772930572811,6.35692242,1969.5,1969.1,0.60407816]
[1772930573012,1.81017699,1969.7,1969.1,0.60407816]
[1772930573212,6.35858761,1969.6,1969.1,0.60407816]
[1772930573414,6.35858761,1969.5,1969.1,0.60407816]
[1772930573613,1.81017699,1969.7,1969.1,0.60407816]
[1772930573812,6.35810334,1969.6,1969.1,0.60407816]
[1772930574012,6.35810334,1969.5,1969.1,0.60407816]
[1772930574216,1.81017699,1969.7,1969.1,0.60407816]
[1772930574415,6.35818468,1969.6,1969.1,0.60407816]
[1772930574617,6.35818468,1969.5,1969.1,0.60407816]
[1772930574813,1.81017699,1969.7,1969.1,0.60407816]
[1772930575013,6.35818153,1969.6,1969.1,0.60407816]
[1772930575213,6.35818153,1969.5,1969.1,0.60407816]
[1772930575414,1.81017699,1969.7,1969.1,0.60407816]
[1772930575610,6.35829591,1969.6,1969.1,0.60407816]
[1772930575814,6.35829591,1969.5,1969.1,0.60407816]
[1772930576015,1.81017699,1969.7,1969.1,0.60407816]
[1772930576214,6.35844409,1969.6,1969.1,0.60407816]
[1772930576418,6.35844409,1969.5,1969.1,0.60407816]
[1772930576719,1.81017699,1969.7,1969.1,0.60407816]
[1772930576914,6.35844409,1969.6,1969.1,0.60407816]
[1772930577115,6.35844409,1969.5,1969.1,0.60407816]
[1772930577314,1.81017699,1969.7,1969.1,0.60407816]
[1772930577516,1.81017699,1969.7,1969.1,0.00435494]
[1772930577517,6.35863791,1969.6,1969.1,0.00435494]
[1772930577716,8.1639057,1969.5,1968.8,0.60005542]
[1772930578016,6.35807233,1969.4,1968.8,0.60005542]
[1772930578214,1.80526779,1969.5,1968.8,0.60005542]
[1772930578415,6.35788254,1969.4,1968.8,0.60005542]
[1772930578620,8.45726779,1969.5,1968.8,0.60005542]
[1772930578822,6.35788011,1969.4,1968.8,0.60630045]
[1772930579019,8.45726779,1969.5,1968.8,0.60630045]
[1772930579320,6.35758595,1969.4,1968.8,0.60630045]
[1772930579618,8.45726779,1969.5,1968.8,0.60630045]
[1772930579815,6.35758481,1969.4,1968.8,0.60630045]
[1772930580119,8.45726779,1969.5,1968.8,0.60630045]
[1772930580320,6.3580582,1969.4,1968.8,0.60630045]
[1772930580615,6.3580582,1969.3,1968.8,0.60630045]
[1772930580816,12.70639471,1969.5,1968.8,0.60630045]
[1772930581013,6.84739813,1969.4,1968.8,0.60630045]
[1772930581219,6.35743633,1969.3,1968.8,0.60630045]
[1772930581413,12.70639471,1969.5,1968.8,0.60630045]
[1772930581613,1.80526779,1969.3,1968.8,0.00624503]
[1772930581817,1.80526779,1969.3,1968.6,0.60004535]
[1772930582724,1.80526779,1969.3,1968.6,0.6045095]
[1772930583624,10.90112692,1969.5,1968.6,0.6045095]
[1772930583820,8.16369949,1969.4,1968.6,0.6045095]
[1772930584019,6.3584317,1969.3,1968.6,0.6045095]
[1772930585921,1.80526779,1969.2,1968.6,0.6045095]
[1772930603651,1.80526779,1969.2,1968.6,0.00446415]
[1772930605154,6.35429748,1969.1,1968.6,0.61350011]
[1772930605350,1.80526779,1969.2,1968.6,0.61350011]
[1772930605552,6.35422079,1969.1,1968.6,0.61350011]
[1772930605851,1.80526779,1969.2,1968.6,0.61350011]
[1772930606051,6.35422205,1969.1,1968.6,0.61350011]
[1772930606250,1.80526779,1969.2,1968.6,0.61350011]
[1772930606449,6.35555642,1969.1,1968.6,0.61350011]
[1772930606650,1.80526779,1969.2,1968.6,0.61350011]
[1772930606846,6.35556373,1969.1,1968.6,0.61350011]
[1772930607046,1.80526779,1969.2,1968.6,0.61350011]
[1772930607252,6.35737983,1969.1,1968.6,0.61350011]
[1772930607453,1.80526779,1969.2,1968.6,0.61350011]
[1772930607653,6.3573789,1969.1,1968.6,0.61350011]
[1772930607855,1.80526779,1969.2,1968.6,0.61350011]
[1772930608159,6.35737746,1969.1,1968.6,0.61350011]
[1772930608458,1.80526779,1969.2,1968.6,0.61350011]
[1772930608658,6.35866635,1969.1,1968.6,0.00446415]
[1772930608858,1.80526779,1969.2,1968.6,0.00446415]
[1772930609054,6.35866607,1969.1,1968.6,0.00446415]
[1772930609254,1.80526779,1969.2,1968.6,0.00446415]
[1772930609455,1.80526779,1968.8,1968.3,0.61132207]
[1772930610556,1.80526779,1968.8,1968.3,0.61695772]
[1772930613164,2.21847955,1969.0,1968.3,0.61695772]
[1772930613363,6.35872911,1968.9,1968.3,0.61695772]
[1772930613564,2.21847955,1969.0,1968.3,0.61695772]
[1772930613765,6.3587299,1968.9,1968.3,0.61695772]
[1772930613961,2.21847955,1969.0,1968.3,0.61695772]
[1772930614163,6.3587307,1968.9,1968.3,0.61695772]
[1772930614363,2.21847955,1969.0,1968.3,0.61695772]
[1772930614660,6.3579397,1968.9,1968.3,0.61695772]
[1772930614861,0.41321176,1969.0,1968.3,0.61695772]
[1772930615061,6.3579397,1968.9,1968.3,0.61695772]
[1772930615366,0.41276265,1969.0,1968.3,0.61695772]
[1772930615566,6.35735283,1968.9,1968.3,0.61695772]
[1772930615767,10.90212692,1969.1,1968.3,0.61695772]
[1772930615966,6.35735385,1969.0,1968.3,0.61695772]
[1772930616265,6.35735385,1968.9,1968.3,0.61695772]
[1772930616465,10.90212692,1969.1,1968.3,0.61695772]
[1772930616668,6.35677106,1969.0,1968.3,0.61695772]
[1772930616869,6.35677106,1968.9,1968.3,0.61695772]
[1772930617071,10.90212692,1969.1,1968.3,0.61695772]
[1772930617369,6.3563333,1969.0,1968.3,0.61695772]
[1772930617569,6.3563333,1968.9,1968.3,0.61695772]
[1772930617764,10.90212692,1969.1,1968.3,0.61695772]
[1772930617960,6.35633409,1969.0,1968.3,0.61695772]
[1772930618170,6.35633409,1968.9,1968.3,0.61695772]
[1772930618470,10.90212692,1969.1,1968.3,0.61695772]
[1772930618770,6.35602855,1969.0,1968.3,0.61695772]
[1772930619068,6.35602855,1968.9,1968.3,0.61695772]
[1772930619268,10.90212692,1969.1,1968.3,0.61695772]
[1772930619468,6.35584299,1969.0,1968.3,0.61695772]
[1772930619669,6.35584299,1968.9,1968.3,0.61695772]
[1772930619865,10.90212692,1969.1,1968.3,0.61695772]
[1772930620061,6.35584299,1969.0,1968.3,0.00563565]
[1772930620266,6.35584299,1968.9,1968.3,0.00563565]
[1772930620462,6.35584299,1968.8,1968.3,0.00563565]
[1772930620667,1.80699142,1968.9,1967.8,0.61368462]
[1772930620866,7.14175745,1968.8,1967.8,0.61368462]
[1772930621074,6.35542738,1968.7,1967.8,0.61368462]
[1772930621370,6.35542738,1968.6,1967.8,0.61368462]
[1772930621572,6.35542738,1968.5,1967.8,0.61368462]
[1772930621876,6.653,1968.4,1967.8,0.61748311]
[1772930623477,6.653,1968.4,1967.6,0.6144218]